bitfinex/quotes_SOLUSD_20251130
["timestamp","ask_amount","ask_price","bid_price","bid_amount"]
[1764496403495,0.69,136.88,136.86,62.8]
[1764496405768,7.99567727,136.88,136.86,62.8]
[1764496407350,7.30567727,136.88,136.86,62.8]
[1764496407551,11.24670413,136.88,136.86,62.8]
[1764496408281,8.01567727,136.88,136.86,62.8]
[1764496408876,8.01567727,136.88,136.85,70.82711822]
[1764496413675,8.01567727,136.88,136.85,63.52]
[1764496413858,0.71,136.87,136.85,63.52]
[1764496414058,7.30567727,136.88,136.85,63.52]
[1764496414259,8.01567727,136.88,136.85,63.52]
[1764496415278,8.01567727,136.88,136.85,70.82721889]
[1764496415485,21.95791399,136.9,136.85,70.10721889]
[1764496415667,3.22,136.91,136.87,3.23102686]
[1764496415851,3.93,136.91,136.87,66.03102686]
[1764496416056,3.93,136.91,136.88,0.69]
[1764496416681,11.23419122,136.91,136.88,0.69]
[1764496416975,3.93,136.91,136.88,7.99563089]
[1764496417158,3.22,136.91,136.89,0.69]
[1764496418297,0.71,136.92,136.89,2.7575227]
[1764496418780,0.71,136.92,136.9,0.69]
[1764496420683,0.65273188,136.92,136.9,0.69]
[1764496421180,10.52309539,136.93,136.9,0.69]
[1764496422464,10.52309539,136.93,136.9,7.9945872]
[1764496422783,7.30309539,136.93,136.9,7.9945872]
[1764496422990,7.30309539,136.93,136.91,0.69]
[1764496423689,8.01309539,136.93,136.91,0.69]
[1764496429088,8.01309539,136.93,136.9,7.9945872]
[1764496429877,8.01309539,136.93,136.9,7.3045872]
[1764496430088,8.01309539,136.93,136.91,0.69]
[1764496431294,0.71,136.93,136.91,0.69]
[1764496433098,0.71,136.93,136.9,70.1045872]
[1764496433288,0.71,136.93,136.9,70.7945872]
[1764496434986,8.01300686,136.93,136.9,63.49]
[1764496435388,0.72,136.92,136.9,63.49]
[1764496435892,0.72,136.92,136.9,62.8]
[1764496436570,0.72,136.92,136.9,63.48]
[1764496438510,0.72,136.92,136.9,0.68]
[1764496439377,7.30300686,136.93,136.9,0.68]
[1764496439378,8.02300686,136.93,136.9,0.68]
[1764496442203,7.30300686,136.93,136.9,0.68]
[1764496442577,8.02300686,136.93,136.9,0.68]
[1764496443202,7.30300686,136.93,136.9,0.68]
[1764496443396,0.72,136.92,136.9,0.68]
[1764496443593,8.02300686,136.93,136.9,0.68]
[1764496445503,32.47247018,136.94,136.9,7.98440685]
[1764496445700,11.24258908,136.94,136.9,7.98440685]
[1764496445884,11.24258908,136.94,136.91,0.68]
[1764496448003,0.72,136.93,136.9,7.30440685]
[1764496448183,0.72,136.93,136.9,7.98440685]
[1764496450181,0.72,136.93,136.9,0.68]
[1764496450484,0.72,136.93,136.9,63.48]
[1764496451986,0.72,136.93,136.91,0.68]
[1764496452187,8.02315436,136.93,136.9,63.48]
[1764496452381,0.72,136.92,136.9,62.8]
[1764496452600,0.72,136.92,136.9,63.48]
[1764496453688,8.02356028,136.92,136.9,63.48]
[1764496454689,7.30356028,136.92,136.9,63.48]
[1764496456111,8.02356028,136.92,136.9,62.8]
[1764496456407,8.02356028,136.92,136.89,63.48]
[1764496456909,8.02356028,136.92,136.9,0.68]
[1764496458011,7.30356028,136.92,136.9,0.68]
[1764496458711,8.02356028,136.92,136.9,0.68]
[1764496459210,16.308864,136.89,136.84,0.68]
[1764496459410,16.308864,136.89,136.82,0.68]
[1764496459411,2.0675227,136.86,136.82,0.68]
[1764496459623,5.2675227,136.86,136.82,0.68]
[1764496459921,2.7875227,136.85,136.81,0.68]
[1764496460225,10.09690402,136.85,136.81,0.68]
[1764496460512,0.72,136.84,136.81,0.68]
[1764496461014,0.72,136.84,136.81,7.98926656]
[1764496461515,2.7875227,136.84,136.81,7.98926656]
[1764496463597,0.72,136.84,136.8,7.30994152]
[1764496463812,16.68425368,136.85,136.82,0.68]
[1764496464123,17.40425368,136.85,136.82,0.68]
[1764496465315,17.40425368,136.85,136.82,63.48]
[1764496466594,0.67,136.84,136.82,62.8]
[1764496467106,2.7375227,136.84,136.82,62.8]
[1764496467292,2.7375227,136.84,136.8,0.71]
[1764496467503,0.67,136.83,136.8,0.71]
[1764496467807,17.35425368,136.84,136.8,63.51]
[1764496468615,24.66232716,136.84,136.81,0.71]
[1764496468814,7.97807348,136.84,136.81,0.71]
[1764496471117,10.04559618,136.84,136.81,63.51]
[1764496471322,9.37559618,136.84,136.81,63.51]
[1764496471523,0.67,136.83,136.81,63.51]
[1764496472025,31.33994072,136.84,136.81,63.51]
[1764496472202,10.04559618,136.84,136.81,63.51]
[1764496476324,9.37559618,136.84,136.81,63.51]
[1764496476520,0.67,136.83,136.81,63.51]
[1764496477530,7.97839999,136.83,136.81,63.51]
[1764496477735,7.97798985,136.84,136.81,63.51]
[1764496477905,10.04551255,136.84,136.81,63.51]
[1764496478106,32.00985709,136.84,136.81,63.51]
[1764496478553,33.17701463,136.84,136.81,63.51]
[1764496480930,11.21267009,136.84,136.81,63.51]
[1764496484129,11.21267009,136.84,136.81,62.8]
[1764496484313,11.21267009,136.84,136.82,0.71]
[1764496487538,7.97798985,136.84,136.82,0.71]
[1764496487837,11.21267009,136.84,136.81,63.51]
[1764496496037,21.96434454,136.85,136.81,70.10932473]
[1764496496235,3.92468024,136.85,136.82,0.72]
[1764496497116,3.23468024,136.85,136.82,0.72]
[1764496497322,0.69,136.88,136.82,66.75468024]
[1764496497516,35.72000537,136.88,136.83,7.30833881]
[1764496497823,0.69,136.87,136.83,8.02833881]
[1764496498022,0.69,136.87,136.84,0.72]
[1764496498630,11.23093384,136.87,136.84,0.72]
[1764496500658,11.23093384,136.87,136.83,7.30833881]
[1764496500659,3.92468024,136.86,136.83,8.02833881]
[1764496500825,11.2314591,136.86,136.83,0.72]
[1764496503052,14.4514591,136.86,136.83,0.72]
[1764496506757,14.4514591,136.86,136.83,63.52]
[1764496507653,10.52677886,136.86,136.84,0.72]
[1764496508460,11.21677886,136.86,136.84,0.72]
[1764496512367,3.22,136.86,136.84,0.72]
[1764496512664,3.22,136.86,136.84,63.52]
[1764496512854,22.64952128,136.89,136.84,11.26246221]
[1764496513057,3.22,136.88,136.85,0.72]
[1764496513444,3.91,136.88,136.85,0.72]
[1764496513643,3.22,136.88,136.85,0.72]
[1764496514068,14.44948151,136.9,136.85,7.17468024]
[1764496514254,0.69,136.89,136.85,7.17468024]
[1764496514453,0.69,136.89,136.86,8.02673079]
[1764496515356,0.69,136.89,136.86,7.30673079]
[1764496515665,3.91,136.9,136.87,0.72]
[1764496516471,0.69,136.89,136.87,0.72]
[1764496518757,0.69,136.89,136.87,63.52]
[1764496524581,0.69,136.89,136.86,70.10673079]
[1764496524582,3.92468024,136.89,136.86,70.10673079]
[1764496524782,3.92468024,136.89,136.86,70.82673079]
[1764496524982,0.69,136.88,136.86,70.82673079]
[1764496525780,3.92468024,136.89,136.86,70.82673079]
[1764496531404,3.92468024,136.88,136.86,62.8]
[1764496531904,0.69,136.87,136.86,62.8]
[1764496532394,3.23468024,136.88,136.86,62.8]
[1764496532699,3.92468024,136.88,136.86,62.8]
[1764496533184,0.69,136.88,136.86,62.8]
[1764496533380,0.69,136.88,136.86,63.48]
[1764496533692,10.52473246,136.9,136.86,70.78668402]
[1764496533885,11.21473246,136.9,136.87,0.68]
[1764496534389,0.69,136.89,136.87,0.68]
[1764496536996,11.21473246,136.9,136.87,0.68]
[1764496538400,0.69,136.89,136.87,0.68]
[1764496538700,11.21473246,136.9,136.87,0.68]
[1764496539578,21.49564651,136.91,136.87,0.68]
[1764496539579,7.99414557,136.91,136.87,0.68]
[1764496539790,7.99414557,136.91,136.87,63.48]
[1764496540081,7.99414557,136.91,136.88,0.68]
[1764496541205,7.99462255,136.9,136.88,0.68]
[1764496542899,7.99462255,136.9,136.87,62.8]
[1764496543323,7.99462255,136.9,136.88,0.68]
[1764496543693,7.99462255,136.9,136.87,62.8]
[1764496543998,7.99462255,136.9,136.87,63.48]
[1764496545800,0.69,136.89,136.87,63.48]
[1764496547015,7.99554946,136.89,136.87,62.8]
[1764496547493,7.30554946,136.89,136.87,63.48]
[1764496547692,7.99554946,136.89,136.87,63.48]
[1764496547893,0.69,136.88,136.87,62.8]
[1764496548094,0.69,136.88,136.85,66.7]
[1764496548300,0.69,136.88,136.86,0.68]
[1764496548909,2.75791804,136.88,136.85,63.48]
[1764496549110,10.06391981,136.88,136.85,63.48]
[1764496549288,0.69,136.87,136.85,63.48]
[1764496549803,0.69,136.87,136.85,62.8]
[1764496549984,2.75791804,136.87,136.84,62.8]
[1764496550514,0.69,136.86,136.84,62.8]
[1764496550720,0.69,136.86,136.84,63.48]
[1764496552205,7.99648546,136.87,136.84,63.48]
[1764496553623,0.69,136.86,136.84,63.48]
[1764496555118,7.30648546,136.87,136.84,63.48]
[1764496555294,7.96648546,136.87,136.84,63.48]
[1764496555794,7.30648546,136.87,136.84,63.48]
[1764496555994,0.66,136.86,136.84,63.48]
[1764496556194,7.96648546,136.87,136.84,63.48]
[1764496557511,0.66,136.86,136.84,63.48]
[1764496558620,0.66,136.86,136.84,62.8]
[1764496559128,0.66,136.85,136.84,62.8]
[1764496560205,0.66,136.85,136.83,0.65]
[1764496560607,0.66,136.86,136.83,0.65]
[1764496562220,7.96683236,136.86,136.83,0.65]
[1764496562420,5.94791804,136.89,136.84,2.06791804]
[1764496562718,7.30567599,136.88,136.84,2.06791804]
[1764496563016,7.30567599,136.88,136.85,2.71791804]
[1764496563217,3.22,136.89,136.86,2.06791804]
[1764496563401,3.22,136.89,136.86,2.71791804]
[1764496563608,3.22,136.89,136.87,0.65]
[1764496565205,7.96509922,136.9,136.87,0.65]
[1764496568118,7.30458228,136.91,136.87,7.95601802]
[1764496568315,7.96458228,136.91,136.88,0.65]
[1764496569112,7.96458228,136.91,136.88,63.45]
[1764496575130,0.66,136.91,136.88,63.45]
[1764496575338,0.66,136.91,136.89,0.65]
[1764496576226,33.13674244,136.92,136.89,0.65]
[1764496576610,11.18364889,136.92,136.89,0.65]
[1764496577521,3.22,136.92,136.89,2.71791804]
[1764496577716,3.22,136.92,136.9,0.65]
[1764496577916,3.88,136.92,136.9,0.65]
[1764496578624,7.96314869,136.93,136.9,0.65]
[1764496578830,3.86,136.94,136.9,10.02246555]
[1764496579016,25.8098811,136.94,136.9,10.02246555]
[1764496579211,3.2,136.94,136.91,0.65]
[1764496579428,0.66,136.93,136.91,0.65]
[1764496579634,25.8098811,136.94,136.91,0.65]
[1764496579833,3.86,136.94,136.91,0.65]
[1764496580732,11.16269811,136.94,136.91,0.65]
[1764496580936,0.66,136.93,136.91,0.65]
[1764496581534,11.16269811,136.94,136.91,0.65]
[1764496582135,0.66,136.93,136.91,0.65]
[1764496582441,3.2,136.94,136.91,0.65]
[1764496582638,3.86,136.94,136.91,0.65]
[1764496583344,3.86,136.94,136.91,7.95382754]
[1764496583918,3.86,136.94,136.91,70.75382754]
[1764496585447,3.86,136.94,136.92,0.72]
[1764496585943,3.86,136.94,136.91,70.82382754]
[1764496587932,3.86,136.94,136.91,70.77382754]
[1764496588848,0.69,136.93,136.91,70.10382754]
[1764496589046,0.69,136.93,136.91,70.77382754]
[1764496589655,5.95791804,136.94,136.91,70.77382754]
[1764496590129,0.69,136.93,136.91,70.77382754]
[1764496592152,0.69,136.93,136.91,70.10382754]
[1764496592339,0.69,136.93,136.91,62.8]
[1764496592644,5.26791804,136.94,136.91,62.8]
[1764496592851,3.89,136.94,136.92,0.67]
[1764496593348,3.2,136.94,136.91,70.77397593]
[1764496593549,0.69,136.93,136.91,70.77397593]
[1764496594749,0.69,136.93,136.91,62.8]
[1764496595449,2.75791804,136.93,136.91,62.8]
[1764496595841,0.69,136.92,136.9,70.10450656]
[1764496596154,2.75791804,136.93,136.9,70.77450656]
[1764496596537,2.06791804,136.93,136.9,70.77450656]
[1764496596856,0.69,136.92,136.9,70.77450656]
[1764496597150,2.75791804,136.93,136.9,70.10450656]
[1764496597359,0.69,136.93,136.91,0.67]
[1764496599753,32.45270828,136.94,136.91,0.67]
[1764496599959,11.19282718,136.94,136.91,0.67]
[1764496600142,0.69,136.93,136.91,0.67]
[1764496601462,25.1498811,136.94,136.91,0.67]
[1764496601763,3.2,136.94,136.91,66.69969667]
[1764496602367,3.2,136.94,136.92,0.67]
[1764496605061,3.89,136.94,136.92,0.67]
[1764496605265,25.31880892,136.97,136.93,3.22969667]
[1764496605266,0.2,136.97,136.93,3.22969667]
[1764496605467,0.2,136.97,136.94,3.89969667]
[1764496605647,0.2,136.97,136.95,3.22969667]
[1764496605850,0.2,136.97,136.95,3.89969667]
[1764496606062,0.2,136.97,136.96,0.67]
[1764496608672,0.2,136.97,136.96,14.40109853]
[1764496609066,0.2,136.97,136.96,17.80109853]
[1764496613756,0.2,136.97,136.96,80.60109853]
[1764496617485,0.2,136.97,136.96,73.50140186]
[1764496617654,0.2,136.97,136.96,74.01109853]
[1764496622782,0.2,136.97,136.96,73.33109853]
[1764496623172,0.2,136.97,136.96,74.01109853]
[1764496623369,0.86,136.97,136.96,70.10140186]
[1764496623675,0.2,136.97,136.96,73.33109853]
[1764496623880,0.2,136.97,136.96,74.01109853]
[1764496624086,0.2,136.97,136.96,77.21109853]
[1764496625088,0.2,136.97,136.96,80.13603728]
[1764496627788,0.2,136.97,136.96,80.42036042]
[1764496627990,0.2,136.97,136.96,89.23030534]
[1764496628866,0.2,136.97,136.96,80.42036042]
[1764496631597,1e-08,136.97,136.96,89.23030534]
[1764496632085,1e-08,136.97,136.96,89.96044552]
[1764496635904,1e-08,136.97,136.96,87.03550677]
[1764496636106,1e-08,136.97,136.96,86.75980402]
[1764496636308,1e-08,136.97,136.96,89.95980402]
[1764496637607,0.2,136.98,136.97,70.38519193]
[1764496637805,0.2,136.98,136.97,74.2948886]
[1764496640893,0.2,136.98,136.97,77.4948886]
[1764496641185,0.2,136.98,136.97,74.01056546]
[1764496641391,0.2,136.98,136.97,77.21056546]
[1764496647513,0.2,136.98,136.97,77.4948886]
[1764496651402,0.89,136.98,136.97,76.53056546]
[1764496651609,0.2,136.98,136.97,76.53056546]
[1764496652221,0.2,136.98,136.97,77.19056546]
[1764496655928,0.2,136.98,136.97,76.53056546]
[1764496656223,0.89,136.98,136.97,76.53056546]
[1764496657222,0.89,136.98,136.97,73.33056546]
[1764496657530,0.89,136.98,136.97,70.10086879]
[1764496657727,0.89,136.98,136.97,76.53056546]
[1764496659805,0.2,136.98,136.97,76.53056546]
[1764496660309,0.2,136.98,136.97,77.19056546]
[1764496661317,0.2,136.98,136.97,77.4748886]
[1764496661627,0.2,136.98,136.97,89.208917]
[1764496662730,0.2,136.98,136.97,88.04273283]
[1764496664115,0.2,136.99,136.98,70.18465894]
[1764496664317,0.2,136.99,136.98,70.84465894]
[1764496666943,0.2,136.99,136.98,72.90817144]
[1764496669026,0.2,136.99,136.98,70.84465894]
[1764496669224,0.2,136.99,136.98,72.90817144]
[1764496671033,0.2,136.99,136.98,76.10817144]
[1764496672050,0.2,137.0,136.99,62.68432313]
[1764496672353,0.2,137.0,136.99,65.40783563]
[1764496673651,0.2,137.0,136.99,72.70763853]
[1764496673838,0.2,137.0,136.99,74.77115103]
[1764496674028,0.2,137.0,136.99,70.64412603]
[1764496674226,0.2,137.0,136.99,74.77115103]
[1764496676154,0.2,137.0,136.99,70.64412603]
[1764496676332,0.2,137.0,136.99,72.70763853]
[1764496679843,0.2,137.0,136.99,72.56547696]
[1764496680352,0.2,137.0,136.99,74.62898946]
[1764496681279,0.2,137.0,136.99,83.29677281]
[1764496681466,0.2,137.0,136.99,86.22042884]
[1764496681952,0.91,137.02,137.0,62.19999999]
[1764496682136,0.91,137.02,137.01,5.2635125]
[1764496683766,0.91,137.02,137.01,12.56224981]
[1764496684452,0.91,137.02,137.01,9.36224981]
[1764496684946,0.91,137.02,137.01,12.56224981]
[1764496686165,0.91,137.02,137.01,9.36224981]
[1764496686354,0.91,137.02,137.01,12.56224981]
[1764496687848,0.91,137.02,137.01,74.7622498]
[1764496688359,0.2,137.02,137.01,74.7622498]
[1764496688949,0.2,137.02,137.01,71.5622498]
[1764496689154,0.91,137.02,137.01,74.7622498]
[1764496689965,0.2,137.02,137.01,74.7622498]
[1764496691159,0.91,137.02,137.01,74.7622498]
[1764496692170,0.2,137.02,137.01,74.7622498]
[1764496694478,0.91,137.02,137.01,74.7622498]
[1764496696069,0.2,137.02,137.01,75.4122498]
[1764496696476,0.2,137.02,137.01,77.68590583]
[1764496697668,0.2,137.02,137.01,78.33590583]
[1764496698067,0.2,137.02,137.01,94.92909297]
[1764496699158,0.1,137.03,137.02,62.28432313]
[1764496699475,0.1,137.03,137.02,73.80778055]
[1764496699668,0.1,137.03,137.02,76.73079564]
[1764496702566,0.1,137.03,137.02,84.02900028]
[1764496705774,0.1,137.03,137.02,74.56905536]
[1764496705974,0.1,137.03,137.02,75.28905536]
[1764496706883,0.1,137.03,137.02,78.48905536]
[1764496709070,0.1,137.03,137.02,77.76905536]
[1764496709770,0.1,137.03,137.02,74.28473222]
[1764496710084,0.76,137.03,137.02,77.48473222]
[1764496713588,0.76,137.03,137.02,74.28473222]
[1764496713807,0.76,137.03,137.02,77.48473222]
[1764496717787,0.76,137.03,137.02,66.98652758]
[1764496717984,0.76,137.03,137.02,67.26351249]
[1764496718288,0.76,137.03,137.02,65.19999999]
[1764496718676,0.76,137.03,137.02,67.26351249]
[1764496720192,0.76,137.03,137.02,74.66012629]
[1764496720578,0.76,137.03,137.02,67.26351249]
[1764496720777,0.76,137.03,137.02,74.66012629]
[1764496721174,0.76,137.03,137.02,71.46012629]
[1764496721382,0.76,137.03,137.02,74.66012629]
[1764496721895,0.76,137.03,137.02,81.95833093]
[1764496722569,0.76,137.03,137.02,83.11841923]
[1764496724989,0.76,137.03,137.02,79.89481843]
[1764496725180,0.76,137.03,137.02,76.69481843]
[1764496725389,0.76,137.03,137.02,69.29820463]
[1764496725693,0.76,137.03,137.02,72.22207437]
[1764496727500,0.1,137.03,137.02,76.16567517]
[1764496727674,0.1,137.03,137.02,75.44567517]
[1764496728387,0.76,137.03,137.02,75.44567517]
[1764496729491,0.1,137.03,137.02,75.44567517]
[1764496729994,0.76,137.03,137.02,72.22207437]
[1764496730190,0.76,137.03,137.02,75.42207437]
[1764496732782,0.76,137.03,137.02,72.22207437]
[1764496732995,0.76,137.03,137.02,75.42207437]
[1764496735700,0.76,137.03,137.02,64.92386973]
[1764496735996,0.76,137.03,137.02,61.99999999]
[1764496736185,0.76,137.03,137.02,55.45869999]
[1764496741383,0.76,137.03,137.01,7.2986697]
[1764496741790,0.76,137.03,137.01,10.5222705]
[1764496742221,0.76,137.03,137.01,7.2986697]
[1764496743111,0.76,137.03,137.0,7.29927007]
[1764496747314,0.76,137.03,137.0,70.09927007]
[1764496752519,0.76,137.03,137.0,73.32287087]
[1764496752718,8.0576769,137.03,137.0,73.32287087]
[1764496753030,0.68,137.02,137.0,70.09927007]
[1764496753213,0.68,137.02,137.0,76.52287087]
[1764496753907,0.68,137.02,137.0,69.2236008]
[1764496754328,0.68,137.02,137.0,66.0]
[1764496760034,0.68,137.02,137.0,73.29920717]
[1764496761240,3.9036008,137.02,136.99,62.8]
[1764496761532,0.68,137.01,136.97,25.36514874]
[1764496762031,0.68,137.01,136.97,24.67514874]
[1764496762413,0.68,137.01,136.98,7.30022563]
[1764496763026,0.68,137.01,136.97,18.25154794]
[1764496763233,11.20257667,137.01,136.98,62.8]
[1764496763619,0.68,137.0,136.98,62.8]
[1764496770750,7.2998029,136.99,136.96,62.8]
[1764496771034,14.5996058,136.99,136.96,62.8]
[1764496771245,0.7,136.98,136.96,62.8]
[1764496776947,8.00037783,136.98,136.96,62.8]
[1764496777446,0.7,136.97,136.96,62.8]
[1764496779727,0.7,136.98,136.96,62.8]
[1764496780044,15.29980959,136.99,136.96,63.46]
[1764496780250,0.7,136.98,136.96,63.46]
[1764496781144,0.7,136.98,136.96,62.8]
[1764496787660,2.76541123,136.98,136.96,62.8]
[1764496788049,0.7,136.97,136.96,62.8]
[1764496794929,0.7,136.98,136.96,62.8]
[1764496801249,10.06601426,136.98,136.95,62.8]
[1764496801449,0.72,136.97,136.95,62.8]
[1764496807848,0.72,136.97,136.95,63.5]
[1764496810273,0.72,136.97,136.95,62.8]
[1764496810766,0.72,136.97,136.95,63.5]
[1764496814766,0.72,136.97,136.95,62.8]
[1764496815778,0.72,136.97,136.95,63.5]
[1764496817577,0.72,136.97,136.95,62.8]
[1764496817964,0.72,136.97,136.95,63.5]
[1764496818681,0.72,136.97,136.95,62.8]
[1764496820079,10.08664556,136.97,136.95,62.8]
[1764496820283,18.37427523,136.96,136.9,63.5]
[1764496820486,2.06541123,136.94,136.91,0.7]
[1764496820659,7.30228322,136.95,136.91,2.76541123]
[1764496820865,8.02228322,136.95,136.91,2.76541123]
[1764496821073,8.02228322,136.95,136.92,0.7]
[1764496821783,7.301414,136.96,136.92,2.76541123]
[1764496821991,7.301414,136.96,136.93,2.06541123]
[1764496822177,7.301414,136.96,136.93,2.76541123]
[1764496822383,7.301414,136.96,136.94,0.7]
[1764496823683,21.452172,136.97,136.95,2.06541123]
[1764496823684,3.2,136.97,136.95,2.06541123]
[1764496823863,11.16093393,136.97,136.94,0.7]
[1764496825566,7.30093393,136.97,136.94,5.96541123]
[1764496825866,7.30093393,136.97,136.95,0.67]
[1764496826065,0.65,136.97,136.94,3.87]
[1764496826294,0.65,136.96,136.93,63.47]
[1764496828096,0.65,136.96,136.94,0.67]
[1764496829588,0.65,136.96,136.93,63.47]
[1764496830497,7.95140244,136.96,136.93,63.47]
[1764496830996,7.95140244,136.96,136.93,62.8]
[1764496831200,7.95140244,136.96,136.94,0.67]
[1764496831582,7.30140244,136.96,136.94,0.67]
[1764496832393,7.95140244,136.96,136.94,0.67]
[1764496832590,7.95140244,136.96,136.93,63.47]
[1764496832790,0.65,136.95,136.93,62.8]
[1764496834488,0.65,136.95,136.93,63.47]
[1764496835003,0.65,136.95,136.93,62.8]
[1764496835375,2.06541123,136.94,136.91,62.8]
[1764496835773,0.65,136.93,136.91,62.8]
[1764496836379,0.65,136.94,136.91,63.47]
[1764496837312,7.95268876,136.94,136.91,63.47]
[1764496837909,0.65,136.93,136.91,63.47]
[1764496838410,7.95305024,136.93,136.91,63.47]
[1764496840286,7.95305024,136.93,136.91,62.8]
[1764496841104,0.65,136.92,136.91,62.8]
[1764496841306,7.95353491,136.92,136.91,62.8]
[1764496841898,7.30353491,136.92,136.91,62.8]
[1764496842611,7.30353491,136.92,136.91,63.47]
[1764496842916,7.30353491,136.92,136.9,63.47]
[1764496843881,7.30319327,136.93,136.91,0.67]
[1764496847013,0.65,136.93,136.91,0.67]
[1764496847414,29.43865636,136.94,136.91,0.67]
[1764496847919,28.78865636,136.94,136.91,0.67]
[1764496848208,0.65,136.93,136.91,0.67]
[1764496848396,0.65,136.93,136.91,63.47]
[1764496849311,25.55916276,136.94,136.91,63.47]
[1764496849484,26.20916276,136.94,136.91,63.47]
[1764496849918,25.55916276,136.94,136.92,0.67]
[1764496850208,7.30246823,136.94,136.92,0.67]
[1764496850410,29.25039416,136.95,136.92,0.67]
[1764496850624,0.65,136.99,136.94,3.2294936]
[1764496850790,25.79185408,136.99,136.94,69.2294936]
[1764496850990,11.14997294,136.99,136.95,0.67]
[1764496851493,3.85,136.99,136.95,0.67]
[1764496851810,7.29948062,137.0,136.95,66.6994936]
[1764496851983,32.43753519,137.01,136.96,3.8994936]
[1764496852181,32.43753519,137.01,136.97,3.2294936]
[1764496852409,11.14889027,137.01,136.97,3.8994936]
[1764496852714,11.14889027,137.01,136.98,0.67]
[1764496855319,14.37838387,137.01,136.98,0.67]
[1764496855519,11.14889027,137.01,136.98,0.67]
[1764496857409,11.14889027,137.01,136.98,63.47]
[1764496858617,14.37838387,137.01,136.98,63.47]
[1764496859015,0.65,137.0,136.98,63.47]
[1764496859319,3.85,137.01,136.98,63.47]
[1764496859612,11.14886596,137.01,136.98,63.47]
[1764496862603,11.11235095,137.01,136.98,63.47]
[1764496862801,0.65,137.0,136.98,62.8]
[1764496864419,0.65,137.0,136.98,63.48]
[1764496865121,10.46235095,137.01,136.99,0.68]
[1764496865815,19.6383576,137.03,137.0,3.2294936]
[1764496865816,22.03543669,137.03,137.0,3.2294936]
[1764496866022,22.03543669,137.03,137.01,3.2294936]
[1764496866023,0.1,137.03,137.01,3.2294936]
[1764496866217,0.1,137.03,137.01,3.9094936]
[1764496866427,0.1,137.03,137.0,66.0294936]
[1764496866712,0.1,137.03,137.01,0.68]
[1764496867422,0.1,137.03,137.01,7.97868462]
[1764496870315,0.1,137.03,137.01,0.68]
[1764496872119,0.1,137.03,137.01,63.48]
[1764496872627,0.1,137.03,137.01,70.77871329]
[1764496875730,0.65,137.02,137.01,62.8]
[1764496875937,14.47626224,137.02,137.01,62.42228938]
[1764496876121,17.67626224,137.02,137.01,62.42228938]
[1764496877214,7.0794936,137.02,137.01,62.42228938]
[1764496877936,14.37769824,137.02,137.01,62.42228938]
[1764496878131,14.37769824,137.02,136.98,63.10228938]
[1764496878432,3.8794936,137.01,136.97,0.68]
[1764496878818,3.8794936,137.01,136.96,76.1530666]
[1764496878819,0.65,137.0,136.96,73.6330666]
[1764496880242,7.94944494,137.0,136.96,70.403573]
[1764496880941,7.94944494,137.0,136.96,69.723573]
[1764496881111,7.94944494,137.0,136.97,0.68]
[1764496881318,0.65,136.99,136.96,70.403573]
[1764496883641,0.65,136.99,136.97,0.68]
[1764496883849,7.94944494,137.0,136.97,0.68]
[1764496884136,7.94944494,137.0,136.97,63.10228938]
[1764496885045,7.94944494,137.0,136.97,62.42228938]